fUST/lending_fUST_20260519
["ID","MTS","AMOUNT","RATE_DAILY","PERIOD"]
[422584832,1779125447000,-851.1,8.767e-05,2]
[422584845,1779125447000,-500.0,8.767e-05,2]
[422584847,1779125447000,-804.41,8.767e-05,2]
[422584849,1779125447000,-500.0,8.767e-05,2]
[422584851,1779125447000,-500.0,8.767e-05,2]
[422584862,1779125447000,-892.9,8.767e-05,2]
[422584864,1779125447000,-500.0,8.767e-05,2]
[422584866,1779125447000,-500.0,8.767e-05,2]
[422584854,1779125447000,-500.0,8.767e-05,2]
[422584868,1779125447000,-500.0,8.767e-05,2]
[422584808,1779125447000,-1488.33,8.493e-05,2]
[422584830,1779125447000,-500.0,8.767e-05,2]
[422584822,1779125447000,-500.0,8.767e-05,2]
[422584756,1779125447000,-1954.91,8.493e-05,2]
[422584804,1779125447000,-500.0,8.493e-05,2]
[422584758,1779125447000,-751.4,8.493e-05,2]
[422584760,1779125447000,-500.0,8.493e-05,2]
[422584778,1779125447000,-4403.01,8.493e-05,2]
[422584768,1779125447000,-1287.72,8.493e-05,2]
[422584765,1779125447000,-1265.26,8.493e-05,2]
[422584770,1779125447000,-2497.65,8.493e-05,2]
[422584776,1779125447000,-1609.14,8.493e-05,2]
[422584762,1779125447000,-1497.46,8.493e-05,2]
[422584774,1779125447000,-742.47,8.493e-05,2]
[422584764,1779125447000,-2615.06,8.493e-05,2]
[422584781,1779125447000,-532.53,8.493e-05,2]
[422584772,1779125447000,-605.53,8.493e-05,2]
[422584806,1779125447000,-528.37,8.493e-05,2]
[422584780,1779125447000,-1784.45,8.493e-05,2]
[422584787,1779125447000,-859.56,8.493e-05,2]
[422584784,1779125447000,-1224.74,8.493e-05,2]
[422584791,1779125447000,-500.0,8.493e-05,2]
[422584797,1779125447000,-500.0,8.493e-05,2]
[422584789,1779125447000,-1957.19,8.493e-05,2]
[422584793,1779125447000,-1829.3,8.493e-05,2]
[422584799,1779125447000,-500.0,8.493e-05,2]
[422584795,1779125447000,-4479.95,8.493e-05,2]
[422584802,1779125447000,-500.0,8.493e-05,2]
[422584801,1779125447000,-2396.24,8.493e-05,2]
[422584818,1779125447000,-582.71,8.767e-05,2]
[422584816,1779125447000,-500.0,8.767e-05,2]
[422584785,1779125447000,-1803.09,8.493e-05,2]
[422584872,1779125447000,-1034.96,8.767e-05,2]
[422584911,1779125447000,-500.0,8.767e-05,2]
[422584870,1779125447000,-500.0,8.767e-05,2]
[422584931,1779125447000,-1077.87,8.767e-05,2]
[422584927,1779125447000,-500.0,8.767e-05,2]
[422584941,1779125447000,-500.0,8.767e-05,2]
[422584943,1779125447000,-500.0,8.767e-05,2]
[422584945,1779125447000,-644.97045205,8.767e-05,2]
[422584947,1779125447000,-500.0,8.767e-05,2]
[422584949,1779125447000,-500.0,8.767e-05,2]
[422584961,1779125447000,-500.0,8.767e-05,2]
[422584951,1779125447000,-607.78,8.767e-05,2]
[422584959,1779125447000,-500.0,8.767e-05,2]
[422584962,1779125447000,-500.0,8.767e-05,2]
[422584955,1779125447000,-500.0,8.767e-05,2]
[422584925,1779125447000,-500.0,8.767e-05,2]
[422584953,1779125447000,-687.23,8.767e-05,2]
[422584968,1779125447000,-500.0,8.767e-05,2]
[422584964,1779125447000,-1047.6,8.767e-05,2]
[422584966,1779125447000,-500.0,8.767e-05,2]
[422584970,1779125447000,-500.0,8.767e-05,2]
[422584974,1779125447000,-607.49,8.767e-05,2]
[422584984,1779125447000,-1504.9,8.767e-05,2]
[422584986,1779125447000,-967.36,8.767e-05,2]
[422584976,1779125447000,-652.87,8.767e-05,2]
[422584982,1779125447000,-500.0,8.767e-05,2]
[422584978,1779125447000,-500.0,8.767e-05,2]
[422584980,1779125447000,-4651.62,8.767e-05,2]
[422584858,1779125447000,-500.0,8.767e-05,2]
[422584957,1779125447000,-500.0,8.767e-05,2]
[422584929,1779125447000,-500.0,8.767e-05,2]
[422584972,1779125447000,-584.55,8.767e-05,2]
[422584935,1779125447000,-500.0,8.767e-05,2]
[422584939,1779125447000,-500.0,8.767e-05,2]
[422584885,1779125447000,-500.0,8.767e-05,2]
[422584887,1779125447000,-500.0,8.767e-05,2]
[422584876,1779125447000,-500.0,8.767e-05,2]
[422584874,1779125447000,-500.0,8.767e-05,2]
[422584891,1779125447000,-500.0,8.767e-05,2]
[422584878,1779125447000,-500.0,8.767e-05,2]
[422584893,1779125447000,-500.0,8.767e-05,2]
[422584883,1779125447000,-1589.45,8.767e-05,2]
[422584881,1779125447000,-500.0,8.767e-05,2]
[422584895,1779125447000,-823.0,8.767e-05,2]
[422584897,1779125447000,-927.86,8.767e-05,2]
[422584903,1779125447000,-500.0,8.767e-05,2]
[422584889,1779125447000,-500.0,8.767e-05,2]
[422584901,1779125447000,-601.26,8.767e-05,2]
[422584937,1779125447000,-884.16,8.767e-05,2]
[422584899,1779125447000,-500.0,8.767e-05,2]
[422584933,1779125447000,-500.0,8.767e-05,2]
[422584923,1779125447000,-468.11832693,8.767e-05,2]
[422584919,1779125447000,-500.0,8.767e-05,2]
[422584913,1779125447000,-500.0,8.767e-05,2]
[422584921,1779125447000,-1644.85,8.767e-05,2]
[422584917,1779125447000,-893.44,8.767e-05,2]
[422584905,1779125447000,-948.45,8.767e-05,2]
[422584907,1779125447000,-500.0,8.767e-05,2]
[422584915,1779125447000,-568.16,8.767e-05,2]
[422584909,1779125447000,-500.0,8.767e-05,2]
[422585033,1779125448000,-1653.31,8.767e-05,2]
[422585063,1779125448000,-121.99044197,8.767e-05,2]
[422585026,1779125448000,-1723.44,8.767e-05,2]
[422585028,1779125448000,-1514.48,8.767e-05,2]
[422585029,1779125448000,-500.0,8.767e-05,2]
[422585065,1779125448000,-2155.33808279,8.767e-05,2]
[422585060,1779125448000,-325.69070486,8.767e-05,2]
[422585085,1779125448000,-500.0,8.493e-05,2]
[422585097,1779125448000,-3600.96,8.767e-05,2]
[422585083,1779125448000,-500.0,8.219e-05,2]
[422585091,1779125448000,-4029.4,8.767e-05,2]
[422585089,1779125448000,-500.0,8.767e-05,2]
[422585093,1779125448000,-712.67,8.767e-05,2]
[422585095,1779125448000,-500.0,8.767e-05,2]
[422585099,1779125448000,-1307.87,8.767e-05,2]
[422585031,1779125448000,-500.0,8.767e-05,2]
[422585101,1779125448000,-500.0,8.767e-05,2]
[422585087,1779125448000,-3517.16191721,8.767e-05,2]
[422585035,1779125448000,-767.02885317,8.767e-05,2]
[422584999,1779125448000,-2059.38,8.767e-05,2]
[422585022,1779125448000,-3334.28,8.767e-05,2]
[422585105,1779125448000,-500.0,8.767e-05,2]
[422584988,1779125448000,-500.0,8.767e-05,2]
[422584990,1779125448000,-1832.73,8.767e-05,2]
[422584993,1779125448000,-977.3,8.767e-05,2]
[422584995,1779125448000,-500.0,8.767e-05,2]
[422584997,1779125448000,-512.06,8.767e-05,2]
[422585010,1779125448000,-500.0,8.767e-05,2]
[422585012,1779125448000,-500.0,8.767e-05,2]
[422585008,1779125448000,-500.0,8.767e-05,2]
[422585020,1779125448000,-605.85,8.767e-05,2]
[422585016,1779125448000,-500.0,8.767e-05,2]
[422585006,1779125448000,-1910.27,8.767e-05,2]
[422585003,1779125448000,-1399.85,8.767e-05,2]
[422585004,1779125448000,-500.0,8.767e-05,2]
[422585001,1779125448000,-1680.65,8.767e-05,2]
[422585014,1779125448000,-500.0,8.767e-05,2]
[422585018,1779125448000,-577.49,8.767e-05,2]
[422585024,1779125448000,-661.46,8.767e-05,2]
[422585103,1779125448000,-28718.06,8.767e-05,2]
[422585147,1779125448000,-4479.95,8.767e-05,2]
[422585111,1779125448000,-1954.91,8.767e-05,2]
[422585151,1779125448000,-500.0,8.767e-05,2]
[422585153,1779125448000,-2396.24,8.767e-05,2]
[422585157,1779125448000,-500.0,8.767e-05,2]
[422585159,1779125448000,-528.37,8.767e-05,2]
[422585173,1779125448000,-500.0,9.041e-05,2]
[422585163,1779125448000,-500.0,8.767e-05,2]
[422585109,1779125448000,-5886.03,8.767e-05,2]
[422585167,1779125448000,-2242.0107,9.041e-05,2]
[422585155,1779125448000,-500.0,8.767e-05,2]
[422585175,1779125448000,-500.0,9.041e-05,2]
[422585161,1779125448000,-1488.33,8.767e-05,2]
[422585165,1779125448000,-500.0,8.767e-05,2]
[422585179,1779125448000,-500.0,9.041e-05,2]
[422585177,1779125448000,-500.0,9.041e-05,2]
[422585181,1779125448000,-500.0,9.041e-05,2]
[422585183,1779125448000,-500.0,9.041e-05,2]
[422585186,1779125448000,-851.1,9.041e-05,2]
[422585189,1779125448000,-500.0,9.041e-05,2]
[422585171,1779125448000,-582.71,9.041e-05,2]
[422585149,1779125448000,-500.0,8.767e-05,2]
[422585169,1779125448000,-500.0,9.041e-05,2]
[422585143,1779125448000,-500.0,8.767e-05,2]
[422585138,1779125448000,-1803.09,8.767e-05,2]
[422585124,1779125448000,-605.53,8.767e-05,2]
[422585126,1779125448000,-742.47,8.767e-05,2]
[422585128,1779125448000,-1609.14,8.767e-05,2]
[422585130,1779125448000,-4403.01,8.767e-05,2]
[422585107,1779125448000,-500.0,8.767e-05,2]
[422585119,1779125448000,-1265.26,8.767e-05,2]
[422585117,1779125448000,-2615.06,8.767e-05,2]
[422585120,1779125448000,-1287.72,8.767e-05,2]
[422585113,1779125448000,-751.4,8.767e-05,2]
[422585122,1779125448000,-2497.65,8.767e-05,2]
[422585134,1779125448000,-532.53,8.767e-05,2]
[422585132,1779125448000,-1784.45,8.767e-05,2]
[422585136,1779125448000,-1224.74,8.767e-05,2]
[422585141,1779125448000,-1957.19,8.767e-05,2]
[422585140,1779125448000,-859.56,8.767e-05,2]
[422585145,1779125448000,-1829.3,8.767e-05,2]
[422585115,1779125448000,-1497.46,8.767e-05,2]
[422585221,1779125449000,-500.0,9.041e-05,2]
[422585217,1779125449000,-500.0,9.041e-05,2]
[422585215,1779125449000,-500.0,9.041e-05,2]
[422585219,1779125449000,-500.0,9.041e-05,2]
[422585209,1779125449000,-500.0,9.041e-05,2]
[422585211,1779125449000,-500.0,9.041e-05,2]
[422585213,1779125449000,-892.9,9.041e-05,2]
[422585207,1779125449000,-813.28,9.041e-05,2]
[422585200,1779125449000,-804.41,9.041e-05,2]
[422585190,1779125449000,-500.0,9.041e-05,2]
[422585203,1779125449000,-500.0,9.041e-05,2]
[422585201,1779125449000,-500.0,9.041e-05,2]
[422585198,1779125449000,-500.0,9.041e-05,2]
[422585196,1779125449000,-500.0,9.041e-05,2]
[422585192,1779125449000,-500.0,9.041e-05,2]
[422585194,1779125449000,-500.0,9.041e-05,2]
[422585225,1779125449000,-500.0,9.041e-05,2]
[422585205,1779125449000,-500.0,9.041e-05,2]
[422585223,1779125449000,-1034.96,9.041e-05,2]
[422585247,1779125449000,-927.86,9.041e-05,2]
[422585227,1779125449000,-500.0,9.041e-05,2]
[422585229,1779125449000,-500.0,9.041e-05,2]
[422585264,1779125449000,-568.16,9.041e-05,2]
[422585259,1779125449000,-500.0,9.041e-05,2]
[422585260,1779125449000,-500.0,9.041e-05,2]
[422585257,1779125449000,-500.0,9.041e-05,2]
[422585255,1779125449000,-948.45,9.041e-05,2]
[422585241,1779125449000,-500.0,9.041e-05,2]
[422585233,1779125449000,-1589.45,9.041e-05,2]
[422585253,1779125449000,-500.0,9.041e-05,2]
[422585262,1779125449000,-500.0,9.041e-05,2]
[422585251,1779125449000,-601.26,9.041e-05,2]
[422585239,1779125449000,-500.0,9.041e-05,2]
[422585235,1779125449000,-500.0,9.041e-05,2]
[422585231,1779125449000,-500.0,9.041e-05,2]
[422585249,1779125449000,-500.0,9.041e-05,2]
[422585266,1779125449000,-771.17402311,9.041e-05,2]
[422585245,1779125449000,-823.0,9.041e-05,2]
[422585243,1779125449000,-500.0,9.041e-05,2]
[422585237,1779125449000,-500.0,9.041e-05,2]
[422585697,1779125492000,-4283.85502222,8.119e-05,2]
[422585700,1779126002000,165.595106,3.643e-05,2]
[422585806,1779126632000,-500.0,8.219e-05,2]
[422585813,1779126632000,-500.0,8.219e-05,2]
[422585818,1779126632000,-500.0,8.219e-05,2]
[422585815,1779126632000,-500.0,8.219e-05,2]
[422585817,1779126632000,-500.0,8.219e-05,2]
[422585827,1779126632000,-500.0,8.219e-05,2]
[422585823,1779126632000,-685.83,8.219e-05,2]
[422585820,1779126632000,-500.0,8.219e-05,2]
[422585821,1779126632000,-500.0,8.219e-05,2]
[422585828,1779126632000,-500.0,8.219e-05,2]
[422585826,1779126632000,-500.0,8.219e-05,2]
[422585830,1779126632000,-528.84815886,8.219e-05,2]
[422585812,1779126632000,-500.0,8.219e-05,2]
[422585825,1779126632000,-500.0,8.219e-05,2]
[422585810,1779126632000,-500.0,8.219e-05,2]
[422585772,1779126632000,-2059.64075307,6.591e-05,2]
[422585804,1779126632000,-500.0,8.219e-05,2]
[422585775,1779126632000,-5000.0,6.658e-05,2]
[422585783,1779126632000,-176.747651,7.835e-05,2]
[422585777,1779126632000,-344.09941805,6.897e-05,2]
[422585787,1779126632000,-325.413,7.957e-05,2]
[422585785,1779126632000,-1200.0,7.956e-05,2]
[422585779,1779126632000,-316.7202147,7.003e-05,2]
[422585808,1779126632000,-670.34,8.219e-05,2]
[422585829,1779126632000,-749.63,8.219e-05,2]
[422585789,1779126632000,-300.0,8.017e-05,2]
[422585793,1779126632000,-300.0,8.018e-05,2]
[422585791,1779126632000,-300.0,8.018e-05,2]
[422585799,1779126632000,-3693.75583193,8.019e-05,2]
[422585797,1779126632000,-11441.05555995,8.019e-05,2]
[422585802,1779126632000,-1868.3444,8.219e-05,2]
[422585781,1779126632000,-165.595106,7.143e-05,2]
[422585831,1779126632000,-500.0,8.219e-05,2]
[422585795,1779126632000,-300.0,8.018e-05,2]
[422585844,1779126632000,-586.70759153,8.219e-05,2]
[422585858,1779126632000,-500.0,8.219e-05,2]
[422585857,1779126632000,-500.0,8.219e-05,2]
[422585852,1779126632000,-531.55,8.219e-05,2]
[422585855,1779126632000,-500.0,8.219e-05,2]
[422585853,1779126632000,-500.0,8.219e-05,2]
[422585854,1779126632000,-500.0,8.219e-05,2]
[422585851,1779126632000,-862.47,8.219e-05,2]
[422585856,1779126632000,-1324.54,8.219e-05,2]
[422585859,1779126632000,-500.0,8.219e-05,2]
[422585861,1779126632000,-500.0,8.219e-05,2]
[422585864,1779126632000,-500.0,8.219e-05,2]
[422585863,1779126632000,-773.22,8.219e-05,2]
[422585865,1779126632000,-501.05,8.219e-05,2]
[422585833,1779126632000,-773.64,8.219e-05,2]
[422585860,1779126632000,-500.0,8.219e-05,2]
[422585849,1779126632000,-744.09,8.219e-05,2]
[422585862,1779126632000,-578.78,8.219e-05,2]
[422585850,1779126632000,-500.0,8.219e-05,2]
[422585847,1779126632000,-500.0,8.219e-05,2]
[422585832,1779126632000,-500.0,8.219e-05,2]
[422585835,1779126632000,-500.0,8.219e-05,2]
[422585836,1779126632000,-531.81,8.219e-05,2]
[422585834,1779126632000,-500.0,8.219e-05,2]
[422585842,1779126632000,-500.0,8.219e-05,2]
[422585843,1779126632000,-500.0,8.219e-05,2]
[422585838,1779126632000,-500.0,8.219e-05,2]
[422585848,1779126632000,-500.0,8.219e-05,2]
[422585837,1779126632000,-500.0,8.219e-05,2]
[422585846,1779126632000,-677.74,8.219e-05,2]
[422585845,1779126632000,-500.0,8.219e-05,2]
[422585839,1779126632000,-500.0,8.219e-05,2]
[422585840,1779126632000,-500.0,8.219e-05,2]
[422585841,1779126632000,-500.0,8.219e-05,2]
[422585895,1779126633000,-571.26,8.219e-05,2]
[422585902,1779126633000,-1603.64,8.219e-05,2]
[422585908,1779126633000,-1508.01,8.219e-05,2]
[422585903,1779126633000,-500.0,8.219e-05,2]
[422585904,1779126633000,-483.60057502,8.219e-05,2]
[422585901,1779126633000,-1671.48,8.219e-05,2]
[422585905,1779126633000,-505.3,8.219e-05,2]
[422585911,1779126633000,-500.0,8.219e-05,2]
[422585899,1779126633000,-500.0,8.219e-05,2]
[422585910,1779126633000,-2917.5,8.219e-05,2]
[422585909,1779126633000,-530.12,8.219e-05,2]
[422585906,1779126633000,-500.0,8.219e-05,2]
[422585907,1779126633000,-500.0,8.219e-05,2]
[422585900,1779126633000,-500.0,8.219e-05,2]
[422585915,1779126633000,-1325.17,8.219e-05,2]
[422585924,1779126633000,-500.0,8.219e-05,2]
[422585923,1779126633000,-3525.73,8.219e-05,2]
[422585914,1779126633000,-500.0,8.219e-05,2]
[422585912,1779126633000,-1224.87,8.219e-05,2]
[422585917,1779126633000,-4963.44,8.219e-05,2]
[422585916,1779126633000,-1446.65,8.219e-05,2]
[422585920,1779126633000,-500.0,8.219e-05,2]
[422585919,1779126633000,-500.0,8.219e-05,2]
[422585921,1779126633000,-500.0,8.219e-05,2]
[422585918,1779126633000,-203.01719543,8.219e-05,2]
[422585922,1779126633000,-1467.78,8.219e-05,2]
[422585927,1779126633000,-1144.39,8.219e-05,2]
[422585894,1779126633000,-855.14,8.219e-05,2]
[422585913,1779126633000,-500.0,8.219e-05,2]
[422585896,1779126633000,-1801.96,8.219e-05,2]
[422585883,1779126633000,-916.65,8.219e-05,2]
[422585890,1779126633000,-4078.33,8.219e-05,2]
[422585928,1779126633000,-500.0,8.219e-05,2]
[422585871,1779126633000,-500.0,8.219e-05,2]
[422585870,1779126633000,-500.0,8.219e-05,2]
[422585868,1779126633000,-500.0,8.219e-05,2]
[422585867,1779126633000,-500.0,8.219e-05,2]
[422585866,1779126633000,-790.37,8.219e-05,2]
[422585869,1779126633000,-500.0,8.219e-05,2]
[422585872,1779126633000,-500.0,8.219e-05,2]
[422585875,1779126633000,-500.0,8.219e-05,2]
[422585876,1779126633000,-657.48,8.219e-05,2]
[422585874,1779126633000,-943.13,8.219e-05,2]
[422585877,1779126633000,-500.0,8.219e-05,2]
[422585879,1779126633000,-500.0,8.219e-05,2]
[422585892,1779126633000,-500.0,8.219e-05,2]
[422585882,1779126633000,-500.0,8.219e-05,2]
[422585878,1779126633000,-500.0,8.219e-05,2]
[422585885,1779126633000,-500.0,8.219e-05,2]
[422585873,1779126633000,-1439.24,8.219e-05,2]
[422585881,1779126633000,-500.0,8.219e-05,2]
[422585880,1779126633000,-601.33,8.219e-05,2]
[422585886,1779126633000,-500.0,8.219e-05,2]
[422585898,1779126633000,-1470.57,8.219e-05,2]
[422585891,1779126633000,-1316.79,8.219e-05,2]
[422585893,1779126633000,-511.49,8.219e-05,2]
[422585897,1779126633000,-846.44,8.219e-05,2]
[422585889,1779126633000,-500.0,8.219e-05,2]
[422585887,1779126633000,-1302.29,8.219e-05,2]
[422585888,1779126633000,-500.0,8.219e-05,2]
[422585884,1779126633000,-500.0,8.219e-05,2]
[422585926,1779126633000,-709.25,8.219e-05,2]
[422585935,1779126633000,-1310.28,8.219e-05,2]
[422585930,1779126633000,-623.59,8.219e-05,2]
[422585962,1779126633000,-500.0,8.492e-05,2]
[422585968,1779126633000,-500.0,8.492e-05,2]
[422585960,1779126633000,-500.0,8.219e-05,2]
[422585972,1779126633000,-500.0,8.493e-05,2]
[422585969,1779126633000,-500.0,8.492e-05,2]
[422585964,1779126633000,-500.0,8.492e-05,2]
[422585965,1779126633000,-500.0,8.492e-05,2]
[422585966,1779126633000,-500.0,8.492e-05,2]
[422585970,1779126633000,-1868.3444,8.493e-05,2]
[422585967,1779126633000,-500.0,8.492e-05,2]
[422585974,1779126633000,-500.0,8.493e-05,2]
[422585984,1779126633000,-500.0,8.493e-05,2]
[422585985,1779126633000,-500.0,8.493e-05,2]
[422585961,1779126633000,-2219.59,8.219e-05,2]
[422585973,1779126633000,-670.34,8.493e-05,2]
[422585976,1779126633000,-500.0,8.493e-05,2]
[422585977,1779126633000,-500.0,8.493e-05,2]
[422585980,1779126633000,-97.69013144,8.493e-05,2]
[422585979,1779126633000,-500.0,8.493e-05,2]
[422585982,1779126633000,-500.0,8.493e-05,2]
[422585983,1779126633000,-685.83,8.493e-05,2]
[422585981,1779126633000,-402.30986856,8.493e-05,2]
[422585978,1779126633000,-500.0,8.493e-05,2]
[422585986,1779126633000,-500.0,8.493e-05,2]
[422585988,1779126633000,-749.63,8.493e-05,2]
[422585987,1779126633000,-500.0,8.493e-05,2]
[422585989,1779126633000,-500.0,8.493e-05,2]
[422585925,1779126633000,-3150.84,8.219e-05,2]
[422585975,1779126633000,-500.0,8.493e-05,2]
[422585963,1779126633000,-272.4303975,8.492e-05,2]
[422585971,1779126633000,-500.0,8.493e-05,2]
[422585952,1779126633000,-500.0,8.219e-05,2]
[422585929,1779126633000,-500.0,8.219e-05,2]
[422585931,1779126633000,-500.0,8.219e-05,2]
[422585933,1779126633000,-25128.31,8.219e-05,2]
[422585934,1779126633000,-1710.54,8.219e-05,2]
[422585959,1779126633000,-3919.96,8.219e-05,2]
[422585990,1779126633000,-500.0,8.493e-05,2]
[422585942,1779126633000,-529.83,8.219e-05,2]
[422585936,1779126633000,-3648.11,8.219e-05,2]
[422585943,1779126633000,-1561.4,8.219e-05,2]
[422585938,1779126633000,-500.0,8.219e-05,2]
[422585940,1779126633000,-649.66,8.219e-05,2]
[422585941,1779126633000,-2185.44,8.219e-05,2]
[422585944,1779126633000,-1408.0,8.219e-05,2]
[422585939,1779126633000,-1126.76,8.219e-05,2]
[422585932,1779126633000,-2288.18,8.219e-05,2]
[422585946,1779126633000,-500.0,8.219e-05,2]
[422585937,1779126633000,-1107.11,8.219e-05,2]
[422585953,1779126633000,-1712.54,8.219e-05,2]
[422585954,1779126633000,-1071.65,8.219e-05,2]
[422585955,1779126633000,-500.0,8.219e-05,2]
[422585950,1779126633000,-1600.63,8.219e-05,2]
[422585949,1779126633000,-3852.63,8.219e-05,2]
[422585951,1779126633000,-752.11,8.219e-05,2]
[422585947,1779126633000,-500.0,8.219e-05,2]
[422585956,1779126633000,-500.0,8.219e-05,2]
[422585945,1779126633000,-500.0,8.219e-05,2]
[422585958,1779126633000,-500.0,8.219e-05,2]
[422585957,1779126633000,-500.0,8.219e-05,2]
[422585948,1779126633000,-1577.7,8.219e-05,2]
[422585992,1779126634000,-170.98586856,8.493e-05,2]
[422585993,1779126634000,-437.26105166,8.493e-05,2]
[422585991,1779126634000,-602.65413144,8.493e-05,2]
[422586049,1779126638000,-500.0,8.493e-05,2]
[422586080,1779126638000,-500.0,8.493e-05,2]
[422586066,1779126638000,-500.0,8.493e-05,2]
[422586068,1779126638000,-500.0,8.493e-05,2]
[422586064,1779126638000,-677.74,8.493e-05,2]
[422586051,1779126638000,-198.99,8.493e-05,2]
[422586063,1779126638000,-500.0,8.493e-05,2]
[422586053,1779126638000,-500.0,8.493e-05,2]
[422586042,1779126638000,-5000.0,8.408e-05,2]
[422586047,1779126638000,-531.81,8.493e-05,2]
[422586059,1779126638000,-500.0,8.493e-05,2]
[422586057,1779126638000,-500.0,8.493e-05,2]
[422586045,1779126638000,-500.0,8.493e-05,2]
[422586055,1779126638000,-500.0,8.493e-05,2]
[422586044,1779126638000,-62.73894834,8.493e-05,2]
[422586070,1779126638000,-744.09,8.493e-05,2]
[422586061,1779126638000,-500.0,8.493e-05,2]
[422586087,1779126638000,-500.0,8.493e-05,2]
[422586081,1779126638000,-1324.54,8.493e-05,2]
[422586072,1779126638000,-500.0,8.493e-05,2]
[422586115,1779126638000,-500.0,8.493e-05,2]
[422586117,1779126638000,-500.0,8.493e-05,2]
[422586101,1779126638000,-500.0,8.493e-05,2]
[422586113,1779126638000,-634.43296842,8.493e-05,2]
[422586099,1779126638000,-790.37,8.493e-05,2]
[422586105,1779126638000,-500.0,8.493e-05,2]
[422586097,1779126638000,-501.05,8.493e-05,2]
[422586095,1779126638000,-500.0,8.493e-05,2]
[422586103,1779126638000,-500.0,8.493e-05,2]
[422586091,1779126638000,-578.78,8.493e-05,2]
[422586089,1779126638000,-500.0,8.493e-05,2]
[422586076,1779126638000,-531.55,8.493e-05,2]
[422586078,1779126638000,-500.0,8.493e-05,2]
[422586074,1779126638000,-862.47,8.493e-05,2]
[422586083,1779126638000,-500.0,8.493e-05,2]
[422586085,1779126638000,-500.0,8.493e-05,2]
[422586093,1779126638000,-773.22,8.493e-05,2]
[422586203,1779126639000,-500.0,8.493e-05,2]
[422586212,1779126639000,-500.0,8.493e-05,2]
[422586214,1779126639000,-3150.84,8.493e-05,2]
[422586210,1779126639000,-3525.73,8.493e-05,2]
[422586208,1779126639000,-1467.78,8.493e-05,2]
[422586192,1779126639000,-500.0,8.493e-05,2]
[422586198,1779126639000,-1325.17,8.493e-05,2]
[422586195,1779126639000,-500.0,8.493e-05,2]
[422586194,1779126639000,-1224.87,8.493e-05,2]
[422586191,1779126639000,-2917.5,8.493e-05,2]
[422586189,1779126639000,-530.12,8.493e-05,2]
[422586206,1779126639000,-500.0,8.493e-05,2]
[422586204,1779126639000,-500.0,8.493e-05,2]
[422586234,1779126639000,-1310.28,8.493e-05,2]
[422586200,1779126639000,-1446.65,8.493e-05,2]
[422586216,1779126639000,-709.25,8.493e-05,2]
[422586218,1779126639000,-1144.39,8.493e-05,2]
[422586230,1779126639000,-25128.31,8.493e-05,2]
[422586220,1779126639000,-500.0,8.493e-05,2]
[422586232,1779126639000,-1710.54,8.493e-05,2]
[422586222,1779126639000,-500.0,8.493e-05,2]
[422586180,1779126639000,-505.3,8.493e-05,2]
[422586224,1779126639000,-623.59,8.493e-05,2]
[422586228,1779126639000,-2288.18,8.493e-05,2]
[422586226,1779126639000,-500.0,8.493e-05,2]
[422586240,1779126639000,-500.0,8.493e-05,2]
[422586238,1779126639000,-1107.11,8.493e-05,2]
[422586236,1779126639000,-3648.11,8.493e-05,2]
[422586202,1779126639000,-4963.44,8.493e-05,2]
[422586182,1779126639000,-500.0,8.493e-05,2]
[422586166,1779126639000,-846.44,8.493e-05,2]
[422586174,1779126639000,-1671.48,8.493e-05,2]
[422586127,1779126639000,-500.0,8.493e-05,2]
[422586130,1779126639000,-500.0,8.493e-05,2]
[422586132,1779126639000,-500.0,8.493e-05,2]
[422586134,1779126639000,-601.33,8.493e-05,2]
[422586119,1779126639000,-1439.24,8.493e-05,2]
[422586136,1779126639000,-500.0,8.493e-05,2]
[422586125,1779126639000,-657.48,8.493e-05,2]
[422586123,1779126639000,-500.0,8.493e-05,2]
[422586121,1779126639000,-943.13,8.493e-05,2]